fUSD/lending_fUSD_20241215
["ID","MTS","AMOUNT","RATE_DAILY","PERIOD"]
[345420322,1734249185316,-162.0,0.00015577,2]
[345420323,1734249185326,-2230.3873769,0.00015595,2]
[345420324,1734249185336,-4249.2828304,0.00015595,2]
[345420325,1734249185346,-2000.0,0.00015616,2]
[345420326,1734249185356,-2811.0,0.00015643,2]
[345420327,1734249185366,-1484.0,0.00015643,2]
[345420328,1734249185375,-1700.0,0.0001565,2]
[345420329,1734249185385,-4600.0,0.0001565,2]
[345420330,1734249185394,-153.0,0.00015668,2]
[345420331,1734249185404,-104624.70792083,0.000157,2]
[345420332,1734249185414,-167.0,0.00015729,2]
[345420333,1734249185423,-875.54,0.00015759,2]
[345420334,1734249185434,-859.02,0.00015815,2]
[345420335,1734249185443,-2309.7017338,0.00015849,2]
[345420336,1734249185453,-4376.0740854,0.00015849,2]
[345420337,1734249185462,-1019.7973415,0.00015849,2]
[345420338,1734249185472,-6736.3384983,0.00015849,2]
[345420339,1734249185482,-814.4259976,0.00015849,2]
[345420340,1734249185491,-164273.43531199,0.0001586,2]
[345420341,1734249185500,-16871.89992385,0.0001586,2]
[345420342,1734249185510,-1544.79,0.00015885,2]
[345420343,1734249185520,-208.0,0.000159,2]
[345420344,1734249185529,-2811.0,0.00015917,2]
[345420345,1734249185539,-1484.0,0.00015917,2]
[345420346,1734249185548,-152.0,0.00015993,4]
[345420347,1734249185558,-150.0,0.00015997,2]
[345420348,1734249185568,-6947.36397347,0.00016,2]
[345420349,1734249185578,-150.0,0.00016009,2]
[345420350,1734249185588,-1056.0,0.00016068,2]
[345420351,1734249185598,-9999.99,0.00016116,2]
[345420352,1734249185607,-2811.0,0.00016191,2]
[345420353,1734249185617,-1484.0,0.00016191,2]
[345420354,1734249185627,-150.0,0.00016194,2]
[345420355,1734249185637,-2000.0,0.00016194,2]
[345420356,1734249185647,-200.0,0.0001634,2]
[345420357,1734249185656,-208.0,0.0001636,2]
[345420358,1734249185667,-275.0791497,0.00016414,2]
[345420359,1734249185676,-6915.19744551,0.00016414,2]
[345420360,1734249185686,-865.45550252,0.00016414,2]
[345420361,1734249185696,-2389.0160907,0.00016427,2]
[345420362,1734249185707,-4502.8653404,0.00016427,2]
[345420363,1734249185716,-1044.6533276,0.00016427,2]
[345420364,1734249185726,-6900.5263511,0.00016427,2]
[345420365,1734249185736,-545.41,0.00016438,2]
[345420366,1734249185746,-545.41,0.00016438,2]
[345420367,1734249185756,-545.41,0.00016438,2]
[345420368,1734249185767,-545.41,0.00016438,2]
[345420369,1734249185778,-545.41,0.00016438,2]
[345420370,1734249185788,-545.41,0.00016438,2]
[345420371,1734249185798,-545.41,0.00016438,2]
[345420372,1734249185808,-545.41,0.00016438,2]
[345420373,1734249185819,-545.41,0.00016438,2]
[345420374,1734249185829,-545.41,0.00016438,2]
[345420375,1734249185839,-545.41,0.00016438,2]
[345420376,1734249185849,-545.41,0.00016438,2]
[345420377,1734249185858,-545.41,0.00016438,2]
[345420378,1734249185868,-545.41,0.00016438,2]
[345420379,1734249185878,-545.41,0.00016438,2]
[345420380,1734249185888,-545.41,0.00016438,2]
[345420381,1734249185898,-545.41,0.00016438,2]
[345420382,1734249185907,-545.41,0.00016438,2]
[345420383,1734249185916,-545.41,0.00016438,2]
[345420384,1734249185926,-545.41,0.00016438,2]
[345420385,1734249185937,-545.41,0.00016438,2]
[345420386,1734249185946,-545.41,0.00016438,2]
[345420387,1734249185960,-545.41,0.00016438,2]
[345420388,1734249185970,-545.48987305,0.00016438,2]
[345420389,1734249185980,-5710.18,0.00016438,2]
[345420390,1734249185989,-5710.18,0.00016438,2]
[345420391,1734249186000,-5710.18,0.00016438,2]
[345420392,1734249186010,-5710.18,0.00016438,2]
[345420393,1734249186021,-5710.18,0.00016438,2]
[345420394,1734249186033,-5710.18,0.00016438,2]
[345420395,1734249186043,-5710.18,0.00016438,2]
[345420396,1734249186054,-5710.18,0.00016438,2]
[345420397,1734249186063,-5710.18,0.00016438,2]
[345420398,1734249186073,-5710.18,0.00016438,2]
[345420399,1734249186082,-5710.18,0.00016438,2]
[345420400,1734249186092,-5710.18,0.00016438,2]
[345420401,1734249186101,-5710.18,0.00016438,2]
[345420402,1734249186110,-5710.18,0.00016438,2]
[345420403,1734249186121,-5710.18,0.00016438,2]
[345420404,1734249186131,-5710.18,0.00016438,2]
[345420405,1734249186140,-5710.18,0.00016438,2]
[345420406,1734249186151,-5710.18,0.00016438,2]
[345420407,1734249186160,-5710.18,0.00016438,2]
[345420408,1734249186170,-5710.18,0.00016438,2]
[345420409,1734249186181,-5710.18,0.00016438,2]
[345420410,1734249186191,-5710.18,0.00016438,2]
[345420411,1734249186201,-5710.18,0.00016438,2]
[345420412,1734249186211,-5710.21699386,0.00016438,2]
[345420413,1734249186221,-200.0,0.00016438,2]
[345420414,1734249186231,-200.0,0.00016438,2]
[345420415,1734249186241,-200.0,0.00016438,2]
[345420416,1734249186251,-200.0,0.00016438,2]
[345420417,1734249186260,-200.0,0.00016438,2]
[345420418,1734249186271,-200.0,0.00016438,2]
[345420419,1734249186280,-200.0,0.00016438,2]
[345420420,1734249186289,-200.0,0.00016438,2]
[345420421,1734249186299,-200.0,0.00016438,2]
[345420422,1734249186308,-200.0,0.00016438,2]
[345420423,1734249186318,-238.28004464,0.00016438,2]
[345420424,1734249186327,-1000.0,0.00016438,2]
[345420425,1734249186337,-1000.0,0.00016438,2]
[345420426,1734249186346,-1000.0,0.00016438,2]
[345420427,1734249186355,-1000.0,0.00016438,2]
[345420428,1734249186365,-1000.0,0.00016438,2]
[345420429,1734249186375,-1000.0,0.00016438,2]
[345420430,1734249186384,-1000.0,0.00016438,2]
[345420431,1734249186395,-1000.0,0.00016438,2]
[345420432,1734249186404,-1000.0,0.00016438,2]
[345420433,1734249186414,-1000.0,0.00016438,2]
[345420434,1734249186424,-1000.0,0.00016438,2]
[345420435,1734249186433,-1000.0,0.00016438,2]
[345420436,1734249186443,-1000.0,0.00016438,2]
[345420437,1734249186452,-1000.0,0.00016438,2]
[345420438,1734249186461,-1000.0,0.00016438,2]
[345420439,1734249186471,-1000.0,0.00016438,2]
[345420440,1734249186480,-1000.0,0.00016438,2]
[345420441,1734249186489,-1000.0,0.00016438,2]
[345420442,1734249186499,-1000.0,0.00016438,2]
[345420443,1734249186508,-1000.0,0.00016438,2]
[345420444,1734249186519,-1000.0,0.00016438,2]
[345420445,1734249186528,-1000.0,0.00016438,2]
[345420446,1734249186538,-1000.0,0.00016438,2]
[345420447,1734249186547,-1000.0,0.00016438,2]
[345420448,1734249186557,-1000.0,0.00016438,2]
[345420449,1734249186566,-1000.0,0.00016438,2]
[345420450,1734249186575,-1000.0,0.00016438,2]
[345420451,1734249186585,-1000.0,0.00016438,2]
[345420452,1734249186595,-1000.0,0.00016438,2]
[345420453,1734249186605,-1000.0,0.00016438,2]
[345420454,1734249186615,-185.0,0.00016438,2]
[345420455,1734249186624,-300.0,0.00016438,2]
[345420456,1734249186634,-496.39,0.00016438,2]
[345420457,1734249186644,-2811.0,0.00016465,2]
[345420458,1734249186653,-1484.0,0.00016465,2]
[345420459,1734249186663,-834.2763742,0.00016534,2]
[345420460,1734249186673,-2000.0,0.00016546,2]
[345420461,1734249186682,-150.7611744,0.0001659,2]
[345420462,1734249186692,-150.0,0.00016594,2]
[345420463,1734249186701,-165.09,0.00016618,2]
[345420464,1734249186711,-186.48,0.00016712,2]
[345420465,1734249186720,-157.0,0.00016729,2]
[345420466,1734249186729,-2811.0,0.00016739,2]
[345420467,1734249186739,-1484.0,0.00016739,2]
[345420468,1734249186748,-2000.0,0.00016772,2]
[345420469,1734249186758,-433.04,0.00016813,2]
[345420470,1734249186768,-280.06,0.00016813,2]
[345420471,1734249186778,-150.0,0.00016818,2]
[345420472,1734249186787,-674.67,0.00016821,2]
[345420473,1734249186796,-1000.0,0.00016822,2]
[345420474,1734249186806,-208.0,0.0001683,2]
[345420475,1734249186816,-600.0,0.00016844,2]
[345420476,1734249186825,-1056.0,0.00016871,2]
[345420477,1734249186835,-150.0,0.00016944,2]
[345420478,1734249186844,-152.0,0.00016945,5]
[345420479,1734249186853,-15077.19397064,0.00017,2]
[345420480,1734249186863,-30105.23492976,0.00017,5]
[345420481,1734249186872,-550.0,0.00017,2]
[345420482,1734249186882,-2811.0,0.00017013,2]
[345420483,1734249186891,-1484.0,0.00017013,2]
[345420484,1734249186901,-153.0,0.00017018,2]
[345420485,1734249186911,-153.0,0.00017018,2]
[345420486,1734249186921,-153.0,0.00017018,2]
[345420487,1734249186930,-153.0,0.00017018,2]
[345420488,1734249186939,-153.0,0.00017018,2]
[345420489,1734249186948,-153.0,0.00017018,2]
[345420490,1734249186963,-153.0,0.00017018,2]
[345420491,1734249186972,-153.0,0.00017018,2]
[345420492,1734249186983,-153.0,0.00017018,2]
[345420493,1734249186992,-500.0,0.0001702,2]
[345420494,1734249187002,-1700.0,0.0001702,2]
[345420495,1734249187012,-4600.0,0.0001702,2]
[345420496,1734249187022,-600.0,0.000171,2]
[345420497,1734249187033,-600.0,0.000171,2]
[345420498,1734249187042,-642.98515547,0.000171,2]
[345420499,1734249187052,-159.0,0.00017138,2]
[345420500,1734249187061,-875.54,0.00017192,2]
[345420501,1734249187070,-153.0,0.00017246,2]
[345420502,1734249187081,-539.42270384,0.00017284,2]
[345420503,1734249187090,-2811.0,0.00017287,2]
[345420504,1734249187100,-1484.0,0.00017287,2]
[345420505,1734249187110,-208.0,0.000173,2]
[345420506,1734249187119,-2000.0,0.0001735,2]
[345420507,1734249187128,-153.323052,0.0001738,2]
[345420508,1734249187138,-168.116355,0.0001738,2]
[345420509,1734249187147,-152.833051,0.0001738,2]
[345420510,1734249187157,-1500.0,0.00017396,2]
[345420511,1734249187166,-1500.0,0.0001742,2]
[345420512,1734249187176,-160.0,0.00017488,2]
[345420513,1734249187185,-160.0,0.00017488,2]
[345420514,1734249187195,-160.0,0.00017488,2]
[345420515,1734249187205,-160.0,0.00017488,2]
[345420516,1734249187214,-160.0,0.00017488,2]
[345420517,1734249187224,-160.0,0.00017488,2]
[345420518,1734249187233,-160.0,0.00017488,2]
[345420519,1734249187243,-160.0,0.00017488,2]
[345420520,1734249187253,-2468.3304476,0.0001752,2]
[345420521,1734249187263,-4629.6565954,0.0001752,2]
[345420522,1734249187273,-1069.5093137,0.0001752,2]
[345420523,1734249187283,-7064.7142039,0.0001752,2]
[345420524,1734249187389,-854.1267507,0.0001752,2]
[345420525,1734249187399,-300.0,0.00017531,2]
[345420526,1734249187409,-300.0,0.00017531,2]
[345420527,1734249187419,-300.0,0.00017531,2]
[345420528,1734249187428,-300.0,0.00017531,2]
[345420529,1734249187438,-300.0,0.00017531,2]
[345420530,1734249187447,-300.0,0.00017531,2]
[345420531,1734249187457,-300.0,0.00017531,2]
[345420532,1734249187467,-300.0,0.00017531,2]
[345420533,1734249187476,-376.13530397,0.00017531,2]
[345420534,1734249187486,-300.0,0.00017531,2]
[345420535,1734249187495,-300.0,0.00017531,2]
[345420536,1734249187504,-300.0,0.00017531,2]
[345420537,1734249187514,-228077.0,0.00017532,2]
[345420538,1734249187524,-11065.0,0.00017532,2]
[345420539,1734249187534,-7799.0,0.00017532,2]
[345420540,1734249187544,-1600.0,0.00017534,2]
[345420541,1734249187553,-1500.0,0.00017554,2]
[345420542,1734249187563,-2811.0,0.00017561,2]
[345420543,1734249187573,-1484.0,0.00017561,2]
[345420544,1734249187582,-275.0791497,0.00017569,2]
[345420545,1734249187592,-9049.10333161,0.00017678,2]
[345420546,1734249187601,-1056.0,0.00017715,2]
[345420547,1734249187611,-200.0,0.0001777,2]
[345420548,1734249187621,-208.0,0.0001777,2]
[345420549,1734249187631,-150.0,0.0001781,2]
[345420550,1734249187640,-2811.0,0.00017835,2]
[345420551,1734249187650,-1484.0,0.00017835,2]
[345420552,1734249187660,-1500.0,0.00017889,2]
[345420553,1734249187670,-152.0,0.00017896,6]
[345420554,1734249187681,-150.2,0.000179,2]
[345420555,1734249187691,-150.2,0.000179,2]
[345420556,1734249187700,-150.2,0.000179,2]
[345420557,1734249187709,-150.2,0.000179,2]
[345420558,1734249187719,-150.2,0.000179,2]
[345420559,1734249187728,-150.2,0.000179,2]
[345420560,1734249187737,-150.2,0.000179,2]
[345420561,1734249187746,-150.2,0.000179,2]
[345420562,1734249187756,-150.2,0.000179,2]
[345420563,1734249187765,-150.2,0.000179,2]
[345420564,1734249187774,-150.2,0.000179,2]
[345420565,1734249187785,-150.2,0.000179,2]
[345420566,1734249187794,-150.2,0.000179,2]
[345420567,1734249187804,-150.2,0.000179,2]
[345420568,1734249187814,-150.2,0.000179,2]
[345420569,1734249187824,-150.2,0.000179,2]
[345420570,1734249187833,-150.2,0.000179,2]
[345420571,1734249187844,-150.2,0.000179,2]
[345420572,1734249187853,-150.2,0.000179,2]
[345420573,1734249187863,-150.2,0.000179,2]
[345420574,1734249187875,-150.2,0.000179,2]
[345420575,1734249187885,-150.2,0.000179,2]
[345420576,1734249187896,-150.2,0.000179,2]
[345420577,1734249187906,-150.2,0.000179,2]
[345420578,1734249187917,-150.2,0.000179,2]
[345420579,1734249187926,-150.2,0.000179,2]
[345420580,1734249187935,-150.2,0.000179,2]
[345420581,1734249187945,-150.2,0.000179,2]
[345420582,1734249187958,-150.2,0.000179,2]
[345420583,1734249187967,-150.2,0.000179,2]
[345420584,1734249187977,-150.2,0.000179,2]
[345420585,1734249187987,-150.2,0.000179,2]
[345420586,1734249187998,-150.2,0.000179,2]
[345420587,1734249188007,-150.2,0.000179,2]
[345420588,1734249188018,-150.2,0.000179,2]
[345420589,1734249188032,-150.2,0.000179,2]
[345420590,1734249188041,-150.2,0.000179,2]
[345420591,1734249188050,-150.2,0.000179,2]
[345420592,1734249188060,-150.2,0.000179,2]
[345420593,1734249188069,-150.2,0.000179,2]
[345420594,1734249188079,-150.2,0.000179,2]
[345420595,1734249188088,-150.2,0.000179,2]
[345420596,1734249188097,-150.2,0.000179,2]
[345420597,1734249188107,-150.2,0.000179,2]
[345420598,1734249188116,-150.2,0.000179,2]
[345420599,1734249188126,-150.2,0.000179,2]
[345420600,1734249188140,-150.2,0.000179,2]
[345420601,1734249188159,-2000.0,0.00017928,2]
[345420602,1734249188172,-1500.0,0.00017967,2]
[345420603,1734249188183,-1500.0,0.0001797,2]
[345420604,1734249188193,-1500.0,0.00017999,2]
[345420605,1734249188202,-300.0,0.00017999,2]
[345420606,1734249188212,-300.0,0.00017999,2]
[345420607,1734249188221,-300.0,0.00017999,2]
[345420608,1734249188231,-300.0,0.00017999,2]
[345420609,1734249188240,-300.0,0.00017999,2]
[345420610,1734249188249,-300.0,0.00017999,2]
[345420611,1734249188259,-300.0,0.00017999,2]
[345420612,1734249188269,-2504.0,0.00018,2]
[345420613,1734249188279,-477.35949882,0.00018,3]
[345420614,1734249188288,-2994.6776213,0.00018,5]
[345420615,1734249188298,-3197.04384077,0.00018,2]
[345420616,1734249188307,-1131.42039521,0.00018,2]
[345420617,1734249188317,-5614.07670459,0.00018,2]
[345420618,1734249188327,-1029.84064689,0.00018,2]
[345420619,1734249188336,-16836.26726559,0.00018,2]
[345420620,1734249188346,-5006.0,0.00018,2]
[345420621,1734249188355,-16553.10377886,0.00018,2]
[345420622,1734249188366,-5005.0,0.00018,2]
[345420623,1734249188376,-23563.11877379,0.00018,2]
[345420624,1734249188385,-1500.0,0.00018008,2]
[345420625,1734249188395,-150.0,0.00018043,2]
[345420626,1734249188404,-1500.0,0.00018046,2]
[345420627,1734249188414,-3000.0,0.00018047,2]
[345420628,1734249188423,-150.0,0.00018051,2]
[345420629,1734249188432,-1500.0,0.00018066,2]
[345420630,1734249188441,-150.0,0.00018069,2]
[345420631,1734249188450,-150.0,0.00018069,2]
[345420632,1734249188459,-150.0,0.00018076,2]
[345420633,1734249188468,-1000.0,0.00018082,2]
[345420634,1734249188477,-150.0,0.00018083,2]
[345420635,1734249188487,-1692.40992798,0.000181,2]
[345420636,1734249188496,-150.0,0.00018107,2]
[345420637,1734249188506,-2811.0,0.00018109,2]
[345420638,1734249188516,-1484.0,0.00018109,2]
[345420639,1734249188526,-1500.0,0.00018109,2]
[345420640,1734249188536,-1700.0,0.00018116,2]
[345420641,1734249188546,-4600.0,0.00018116,2]
[345420642,1734249188556,-1544.79,0.00018149,2]
[345420643,1734249188565,-150.0,0.0001815,2]
[345420644,1734249188574,-150.0,0.00018154,2]
[345420645,1734249188584,-150.0,0.00018158,2]
[345420646,1734249188594,-150.0,0.00018163,2]
[345420647,1734249188603,-150.0,0.0001818,2]
[345420648,1734249188612,-1600.0,0.00018183,2]
[345420649,1734249188623,-150.0,0.00018186,2]
[345420650,1734249188632,-150.0,0.00018192,2]
[345420651,1734249188642,-150.0,0.00018202,2]
[345420652,1734249188652,-150.0,0.00018208,2]
[345420653,1734249188662,-150.0,0.00018212,2]
[345420654,1734249188672,-1500.0,0.00018226,2]
[345420655,1734249188682,-150.0,0.00018234,2]
[345420656,1734249188692,-208.0,0.0001824,2]
[345420657,1734249188702,-200.0,0.0001824,2]
[345420658,1734249188712,-168.116355,0.00018249,2]
[345420659,1734249188722,-150.0,0.00018249,2]
[345420660,1734249188732,-150.0,0.00018263,2]
[345420661,1734249188741,-150.0,0.00018269,2]
[345420662,1734249188751,-150.0,0.00018272,2]
[345420663,1734249188761,-150.0,0.00018275,2]
[345420664,1734249188772,-150.0,0.0001828,2]
[345420665,1734249188782,-150.0,0.00018281,2]
[345420666,1734249189089,-150.0,0.00018294,2]
[345420667,1734249189143,-150.0,0.00018294,2]
[345420668,1734249189153,-150.0,0.00018295,2]
[345420669,1734249189164,-150.0,0.00018297,2]
[345420670,1734249189174,-150.0,0.00018298,2]
[345420671,1734249189184,-165.17,0.00018309,2]
[345420672,1734249189193,-150.0,0.00018316,2]
[345420673,1734249189202,-150.0,0.00018319,2]
[345420674,1734249189213,-150.0,0.00018324,2]
[345420675,1734249189223,-150.0,0.00018325,2]
[345420676,1734249189232,-150.0,0.00018333,2]
[345420677,1734249189242,-150.0,0.00018333,2]
[345420678,1734249189252,-150.0,0.00018334,2]
[345420679,1734249189261,-150.0,0.00018336,2]
[345420680,1734249189273,-1500.0,0.00018338,2]
[345420681,1734249189283,-2547.6448045,0.00018344,2]
[345420682,1734249189292,-4756.4478504,0.00018344,2]
[345420683,1734249189302,-1094.3652997,0.00018344,2]
[345420684,1734249189312,-7228.9020567,0.00018344,2]
[345420685,1734249189322,-873.9771273,0.00018344,2]
[345420686,1734249189333,-150.0,0.00018349,2]
[345420687,1734249189345,-300.0,0.00018355,2]
[345420688,1734249189356,-300.0,0.00018355,2]
[345420689,1734249189367,-305.02703547,0.00018355,2]
[345420690,1734249189378,-300.0,0.00018355,2]
[345420691,1734249189388,-300.0,0.00018355,2]
[345420692,1734249189398,-300.0,0.00018355,2]
[345420693,1734249189409,-300.0,0.00018355,2]
[345420694,1734249189418,-58799.32,0.00018356,2]
[345420695,1734249189427,-150.0,0.00018357,2]
[345420696,1734249189436,-150.0,0.00018358,2]
[345420697,1734249189446,-150.0,0.00018362,2]
[345420698,1734249189455,-150.0,0.00018363,2]
[345420699,1734249189465,-150.0,0.00018365,2]
[345420700,1734249189474,-150.0,0.00018366,2]
[345420701,1734249189484,-150.0,0.0001837,2]
[345420702,1734249189493,-150.0,0.00018375,2]
[345420703,1734249189501,-2811.0,0.00018383,2]
[345420704,1734249189511,-1484.0,0.00018383,2]
[345420705,1734249189521,-150.0,0.00018395,2]
[345420706,1734249189530,-150.0,0.00018407,2]
[345420707,1734249189540,-150.0,0.00018409,2]
[345420708,1734249189549,-150.0,0.0001841,2]
[345420709,1734249189559,-150.0,0.0001841,2]
[345420710,1734249189568,-150.0,0.00018411,2]
[345420711,1734249189577,-150.0,0.00018419,2]
[345420712,1734249189586,-150.0,0.00018429,2]
[345420713,1734249189596,-150.0,0.00018431,2]
[345420714,1734249189605,-150.0,0.00018443,2]
[345420715,1734249189614,-150.0,0.00018449,2]
[345420716,1734249189623,-150.0,0.00018453,2]
[345420717,1734249189634,-1500.0,0.00018463,2]
[345420718,1734249189643,-1500.0,0.00018463,2]
[345420719,1734249189653,-150.0,0.00018468,2]
[345420720,1734249189662,-150.0,0.00018472,2]
[345420721,1734249189672,-150.0,0.00018481,2]
[345420722,1734249189681,-150.0,0.00018488,2]
[345420723,1734249189691,-150.0,0.00018499,2]
[345420724,1734249189700,-60000.0,0.000185,2]
[345420725,1734249189709,-150.0,0.000185,2]
[345420726,1734249189719,-150.0,0.00018502,2]
[345420727,1734249189730,-1500.0,0.00018506,2]
[345420728,1734249189740,-150.0,0.00018506,2]
[345420729,1734249189749,-150.0,0.00018508,2]
[345420730,1734249189759,-150.0,0.00018512,2]
[345420731,1734249189769,-150.0,0.00018515,2]
[345420732,1734249189779,-150.0,0.00018517,2]
[345420733,1734249189790,-1500.0,0.00018522,2]
[345420734,1734249189802,-150.84385227,0.00018526,2]
[345420735,1734249189812,-150.0,0.00018526,2]
[345420736,1734249189822,-150.0,0.0001853,2]
[345420737,1734249189831,-150.0,0.00018535,2]
[345420738,1734249189841,-150.0,0.00018538,2]
[345420739,1734249189850,-150.0,0.00018558,2]
[345420740,1734249189860,-150.0,0.00018567,2]
[345420741,1734249189871,-1500.0,0.00018568,2]
[345420742,1734249189880,-1500.0,0.00018598,2]
[345420743,1734249189890,-752982.31290173,0.000186,2]
[345420744,1734249189900,-150.0,0.00018601,2]
[345420745,1734249189909,-150.0,0.00018603,2]
[345420746,1734249189919,-150.0,0.00018611,2]
[345420747,1734249189928,-150.0,0.00018615,2]
[345420748,1734249189937,-150.0,0.00018618,2]
[345420749,1734249189947,-250.39,0.00018619,2]
[345420750,1734249189962,-1500.0,0.00018619,2]
[345420751,1734249189972,-150.0,0.00018619,2]
[345420752,1734249189981,-250.0,0.00018621,2]
[345420753,1734249189990,-150.0,0.00018624,2]
[345420754,1734249190002,-150.0,0.00018624,2]
[345420755,1734249190011,-150.0,0.00018627,2]
[345420756,1734249190023,-150.0,0.00018629,2]
[345420757,1734249190035,-150.0,0.0001863,2]
[345420758,1734249190044,-150.0,0.00018635,2]
[345420759,1734249190053,-150.0,0.00018636,2]
[345420760,1734249190064,-150.42011666,0.00018637,2]
[345420761,1734249190075,-150.0,0.00018645,2]
[345420762,1734249190085,-150.0,0.00018656,2]
[345420763,1734249190095,-2811.0,0.00018657,2]
[345420764,1734249190106,-1484.0,0.00018657,2]
[345420765,1734249190116,-150.0,0.00018674,2]
[345420766,1734249190127,-150.0,0.00018678,2]
[345420767,1734249190137,-150.0,0.0001869,2]
[345420768,1734249190146,-150.0,0.00018694,2]
[345420769,1734249190156,-150.0,0.00018695,2]
[345420770,1734249190167,-328.58276844,0.000187,2]
[345420771,1734249190177,-1500.0,0.00018706,2]
[345420772,1734249190190,-208.0,0.0001871,2]
[345420773,1734249190199,-200.0,0.0001871,2]
[345420774,1734249190209,-150.0,0.00018711,2]
[345420775,1734249190219,-250.0,0.00018715,2]
[345420776,1734249190230,-250.0,0.00018715,2]
[345420777,1734249190240,-150.0,0.00018723,2]
[345420778,1734249190251,-275.0791497,0.00018725,2]
[345420779,1734249190263,-1500.0,0.00018726,2]
[345420780,1734249190273,-150.0,0.00018728,2]
[345420781,1734249190282,-150.0,0.00018729,2]
[345420782,1734249190293,-150.0,0.00018729,2]
[345420783,1734249190303,-150.0,0.00018729,2]
[345420784,1734249190313,-150.0,0.00018744,2]
[345420785,1734249190324,-150.0,0.00018751,2]
[345420786,1734249190335,-150.0,0.00018758,2]
[345420787,1734249190347,-150.0,0.00018759,2]
[345420788,1734249190357,-150.0,0.0001876,2]
[345420789,1734249190369,-150.0,0.0001876,2]
[345420790,1734249190379,-150.0,0.00018763,2]
[345420791,1734249190391,-1500.0,0.00018767,2]
[345420792,1734249190401,-150.0,0.00018769,2]
[345420793,1734249190412,-150.0,0.00018771,2]
[345420794,1734249190423,-1500.0,0.00018772,2]
[345420795,1734249190434,-150.0,0.00018776,2]
[345420796,1734249190444,-150.0,0.00018777,2]
[345420797,1734249190455,-150.0,0.00018784,2]
[345420798,1734249190467,-150.0,0.00018785,2]
[345420799,1734249190477,-150.0,0.00018792,2]
[345420800,1734249190492,-150.0,0.00018801,2]
[345420801,1734249190500,-156.0,0.00018805,2]
[345420802,1734249190510,-155.0,0.00018808,2]
[345420803,1734249190520,-150.0,0.00018808,2]
[345420804,1734249190530,-150.0,0.00018808,2]
[345420805,1734249190539,-150.0,0.00018815,2]
[345420806,1734249190548,-1600.0,0.00018832,2]
[345420807,1734249190557,-1500.0,0.00018834,2]
[345420808,1734249190566,-150.0,0.00018839,2]
[345420809,1734249190575,-150.0,0.00018843,2]
[345420810,1734249190584,-150.0,0.00018844,2]
[345420811,1734249190593,-152.0,0.00018848,7]
[345420812,1734249190603,-150.0,0.00018858,2]
[345420813,1734249190612,-150.0,0.00018866,2]
[345420814,1734249190622,-1500.0,0.00018873,2]
[345420815,1734249190631,-150.0,0.00018874,2]
[345420816,1734249190640,-150.0,0.00018876,2]
[345420817,1734249190649,-1222.35,0.00018877,8]
[345420818,1734249190659,-150.0,0.00018877,2]
[345420819,1734249190668,-150.0,0.00018885,2]
[345420820,1734249190678,-150.0,0.00018894,2]
[345420821,1734249190687,-300.0,0.00018899,2]